Cogmind - Beta 13 @@@ ROGUE MODE // 2024.04.06 @ 11:41:18 Player: bradybot Result: Destroyed by Y-45 Defender with Heavy Assault Rifle Performance ------------- Evolutions (0) 0 Regions Visited (2) 400 Robots Destroyed (26) 130 Value Destroyed (585) 585 Prototype IDs (4) 80 Alien Tech Used (0) 0 Bonus (0) 0 TOTAL SCORE: 1195 Bonus ------- None Cogmind --------- Core Integrity 0/250 Matter 24/300 Energy 280/280 System Corruption 7% Temperature Cool (0) Movement Rolling (95) Ox1 Location -10/Subcaves Parts ------- > --- POWER (1) -------- Cooled Ion Engine > --- PROPULSION (2) --- Wheel Wheel > --- UTILITY (2) ------ Large Storage Unit Makeshift Light Armor Plating > --- WEAPON (2) ------- Battle Rifle Grenade Launcher > --- INVENTORY (15) --- Subdweller Monowheel Huge Storage Unit Visual Processing Unit Signal Interpreter Terrain Scanner Terrain Scan Processor Seismic Detector ECM Suite EM Pulse Gun Particle Cannon Assault Rifle Assault Rifle Light Cannon Grenade Launcher Scrap Shield Fragment (48) Peak State ------------ > --- POWER ------------ Cooled Ion Engine > --- PROPULSION ------- Wheel Wheel > --- UTILITY ---------- Large Storage Unit Makeshift Light Armor Plating > --- WEAPON ----------- Battle Rifle Grenade Launcher > --- INVENTORY -------- Subdweller Monowheel Huge Storage Unit Visual Processing Unit Signal Interpreter Terrain Scanner Terrain Scan Processor Seismic Detector ECM Suite EM Pulse Gun Particle Cannon Assault Rifle Assault Rifle Light Cannon Grenade Launcher Scrap Shield Fragment [Rating: 15] Favorites ----------- Power Light Nuclear Core Engine Light Ion Engine Power Core Light Nuclear Core Propulsion Aluminum Leg Leg Aluminum Leg Wheel Wheel Utility Large Storage Unit Device ECM Suite Storage Large Storage Unit Protection Makeshift Light Armor Plating Weapon Mining Laser Energy Gun EM Pulse Gun Energy Cannon Particle Cannon Ballistic Gun Assault Rifle Ballistic Cannon Light Cannon Launcher Grenade Launcher Special Weapon Mining Laser Build | -11 -10 -10 ------- Run | Yrd Mat Sub Slots Evolved . | . . . Power . | . . . Propulsion . | . . . Utility . | . . . Weapon . | . . . Parts Attached 44 | 8 25 11 Power 6 | 1 4 1 Engine 4 | 1 2 1 Core 2 | . 2 . Reactor . | . . . Propulsion 9 | 2 5 2 Treads . | . . . Leg 7 | 2 5 . Wheel 2 | . . 2 Hover . | . . . Flight . | . . . Utility 9 | 2 6 1 Device 3 | 2 1 . Storage 5 | . 5 . Processor . | . . . Hackware . | . . . Protection 1 | . . 1 Artifact . | . . . Weapon 20 | 3 10 7 Energy Gun 3 | 1 1 1 Energy Cannon 2 | . 1 1 Ballistic Gun 7 | 2 2 3 Ballistic Cannon 1 | . . 1 Launcher 4 | . 3 1 Special Weapon 3 | . 3 . Impact Weapon . | . . . Slashing Weapon . | . . . Piercing Weapon . | . . . Special Melee Weapon . | . . . Unidentified Prototypes . | . . . Parts Lost 7 | . 3 4 Power 3 | . 2 1 Propulsion 3 | . 1 2 Utility . | . . . Weapon 1 | . . 1 Highest Loss Streak 2 | . 2 2 To Critical Strikes . | . . . Average Slot Usage (%) 99 | . 98 99 Engine 6 | . 5 11 Core 6 | . 8 2 Leg 26 | . 27 21 Wheel 1 | . . 6 Device 13 | . 14 12 Storage 13 | . 13 14 Energy Gun 2 | . 3 . Energy Cannon 5 | . 3 10 Ballistic Gun 5 | . 6 3 Ballistic Cannon 1 | . . 7 Launcher 3 | . 4 2 Special Weapon 7 | . 9 2 Naked Turns . | . . . Heaviest Build 37 | 8 33 37 Greatest Support 20 | 20 20 20 Greatest Overweight (x) 1 | . 1 1 Average Overweight (x) . | . . 1 Largest Inventory Capacity 25 | 5 25 15 Average Capacity 14 | 5 14 15 Most Carried 15 | 5 15 15 Average Carried 13 | 3 13 13 Final Capacity 15 | 5 15 15 Final Carried 15 | 5 15 15 Class Distribution -------------------- 100% | Mutant Dominant Class ---------------- Mutant | -10/Materials Mutant | -10/Subcaves Resources | -11 -10 -10 ----------- Run | Yrd Mat Sub Matter Collected 754 | 299 247 208 Remotely . | . . . Salvage Created 589 | 56 366 167 Parts 34 | 5 18 11 Haulers Intercepted . | . . . Recyclers Shooed . | . . . Parts Field Recycled . | . . . Retrieved Matter . | . . . Parts Self-Destructed 2 | . . 2 Prevented . | . . . Kills | -11 -10 -10 ------- Run | Yrd Mat Sub Combat Hostiles Destroyed 16 | 1 9 6 Guns 7 | 1 3 3 Cannons 3 | . 1 2 AOE 6 | . 5 1 Classes Destroyed 8 | 2 5 1 Worker 1 | . 1 . Builder 5 | . 5 . Tunneler 1 | 1 . . Recycler 1 | . 1 . Watcher 2 | . 2 . Swarmer 4 | . 3 1 Grunt 7 | 1 6 . Subdweller 5 | . . 5 Best Kill Streak 6 | 1 6 2 Combat Bots Only 4 | 1 4 2 Max Kills in Single Turn 3 | 1 3 1 Gunslinging . | . . . Exploded 1 | . 1 1 Melee . | . . . Uniques/NPCs Destroyed . | . . . Combat | -11 -10 -10 -------- Run | Yrd Mat Sub Hostile Shots Fired 106 | 5 43 58 Missed 34 | 2 16 16 Damage Taken 1396 | 36 521 839 Core 263 | . 49 214 Absorbed by Shields . | . . . Core Remaining (%) 100 | 100 . . Volleys Fired 123 | 6 84 33 Largest 2 | 2 2 2 Hottest 168 | 40 100 168 Shots Fired 174 | 12 110 52 Gun 91 | 12 55 24 Cannon 25 | . 4 21 Launcher 22 | . 16 6 Special 36 | . 35 1 Kinetic 74 | 12 41 21 Thermal 56 | . 39 17 Explosive 22 | . 16 6 Electromagnetic 22 | . 14 8 Robot Hit Streak 11 | 4 6 11 Robot Miss Streak 3 | 1 3 2 Penetration Max . | . . . Secondary Targets . | . . . Shots Hit Robots 63 | 7 25 31 Core Hits 45 | 4 29 12 Critical Kills 1 | . 1 . Critical Parts Destroyed . | . . . Critical Strikes 2 | . 2 . Destroy 1 | . 1 . Corrupt 1 | . 1 . Melee Attacks . | . . . Impact . | . . . Slashing . | . . . Piercing . | . . . Sneak Attacks . | . . . Combat Hostiles . | . . . Follow-up Attacks . | . . . Damage Inflicted 2026 | 68 1289 669 Guns 605 | 68 356 181 Cannons 342 | . 21 321 Explosions 1072 | . 912 160 Melee . | . . . Ramming 7 | . . 7 Kinetic 524 | 68 272 184 Thermal 286 | . 21 265 Explosive 1072 | . 912 160 Electromagnetic 137 | . 84 53 Impact . | . . . Slashing . | . . . Piercing . | . . . Highest Corruption 7 | . 7 7 Average Corruption 6 | . 6 7 Corruption Purged . | . . . Corruption Blocked . | . . . Effects 70 | . 43 27 Message Errors 12 | . 9 3 Matter Fused 14 | . 8 6 Heat Flow Errors 6 | . 4 2 Energy Discharges 13 | . 7 6 Data Loss (minor) 15 | . 9 6 Data Loss (major) 4 | . 2 2 Misfires 4 | . 4 . Alerts 1 | . . 1 Weapon Failures 1 | . . 1 Overload Shots . | . . . Overflow Damage 39 | . 39 . Projectiles . | . . . Explosions 39 | . 39 . Melee . | . . . Knockbacks 1 | . . 1 Impact . | . . . Kinetic 1 | . . 1 Secondary . | . . . Self-Inflicted Damage 39 | . 1 38 Shots 2 | . 1 1 Rammed . | . . . Targets Rammed 1 | . . 1 Kicked 1 | . . 1 Crushed . | . . . Highest Temperature 327 | 6 327 193 Average Temperature 65 | 6 66 58 Received Heat Transfer 381 | 18 198 165 Effects 6 | . 6 . Energy Bleed 3 | . 3 . Interference 2 | . 2 . Damage (minor) 1 | . 1 . Siege Activations . | . . . Robots Corrupted . | . . . Combat Hostiles . | . . . Parts Fried . | . . . Impact Corruptions . | . . . Robots Melted . | . . . Combat Hostiles . | . . . Parts Melted 1 | . . 1 Heat Transferred 518 | . 37 481 Parts Sabotaged . | . . . Parts Stolen . | . . . Parts Stripped . | . . . Power Chain Reactions . | . . . Alert | -11 -10 -10 ------- Run | Yrd Mat Sub Peak Influence 187 | 25 187 . Initial 16 | . 16 . Average 30 | 14 31 . Maximum Alert Level 1 | . 1 . Low Security (%) 99 | 100 99 . Level 1 . | . . . Level 2 . | . . . Level 3 . | . . . Level 4 . | . . . Level 5 . | . . . High Security . | . . . Max Security . | . . . Squads Dispatched 2 | . 2 . Investigation 1 | . 1 . Extermination . | . . . Reinforcement 1 | . 1 . Assault . | . . . Garrison . | . . . Intercept . | . . . Searches Triggered . | . . . Construction Impeded . | . . . Haulers Reinforced . | . . . Active Scanning Responses . | . . . Cargo Convoy Interrupts . | . . . Stealth | -11 -10 -10 --------- Run | Yrd Mat Sub Distress Signals . | . . . Communications Jammed . | . . . Distress Signals . | . . . Times Spotted 34 | 1 26 7 Peak Tracking Total 4 | 1 4 2 Tactical Retreats 2 | . 2 . Traps | -11 -10 -10 ------- Run | Yrd Mat Sub Traps Triggered 3 | . 3 . Indirectly . | . . . Trap Hack Attempts . | . . . Triggered . | . . . Disarmed . | . . . Reprogrammed . | . . . Reused . | . . . Traps Extracted . | . . . Installed . | . . . Triggered . | . . . Machines | -11 -10 -10 ---------- Run | Yrd Mat Sub Machines Disabled 1 | . 1 . Max in Single Turn 1 | . 1 . Machines Repaired . | . . . Machines Dismantled . | . . . Machines Sabotaged . | . . . Overloaded Fab Kills . | . . . Hacking | -11 -10 -10 --------- Run | Yrd Mat Sub Machines Accessed 7 | . 7 . Terminals 6 | . 6 . Fabricators . | . . . Repair Stations . | . . . Recycling Units 1 | . 1 . Scanalyzers . | . . . Garrison Access . | . . . Total Hacks 20 | . 20 . Successful 13 | . 13 . Failed 7 | . 7 . Catastrophic 2 | . 2 . Database Lockouts . | . . . Manual . | . . . Terminals 15 | . 15 . Fabricators . | . . . Repair Stations . | . . . Recycling Units 5 | . 5 . Scanalyzers . | . . . Garrison Access . | . . . Terminal Hacks 8 | . 8 . Record 1 | . 1 . Prototype ID Bank 2 | . 2 . Emergency Access Points 1 | . 1 . Alert Level 1 | . 1 . Locate Traps 2 | . 2 . Zone Layout 1 | . 1 . Fabricator Hacks . | . . . Repair Station Hacks . | . . . Recycling Unit Hacks 5 | . 5 . Recycle Component 1 | . 1 . Process 2 | . 2 . Report Inventory 1 | . 1 . Retrieve Matter 1 | . 1 . Scanalyzer . | . . . Garrison Access Hacks . | . . . Unauthorized Hacks . | . . . Terminals . | . . . Fabricators . | . . . Repair Stations . | . . . Recycling Units . | . . . Scanalyzers . | . . . Garrison Access . | . . . Data Cores Recovered . | . . . Used . | . . . Hacking Detections 4 | . 4 . Full Trace Events . | . . . Feedback Events . | . . . Feedback Blocked . | . . . Robot Schematics Acquired . | . . . Robots Built . | . . . Authchips . | . . . Time . | . . . Total Robot Build Rating . | . . . Part Schematics Acquired . | . . . Parts Built . | . . . Authchips . | . . . Time . | . . . Total Part Build Rating . | . . . Parts Repaired . | . . . Time . | . . . Parts Recycled 1 | . 1 . Recycled Matter 114 | . 114 . Retrieved Matter 114 | . 114 . Retrieved Components . | . . . Parts Scanalyzed . | . . . Part Schematics Acquired . | . . . Parts Damaged . | . . . Bothacking | -11 -10 -10 ------------ Run | Yrd Mat Sub Used RIF Installer . | . . . Robots Hacked . | . . . Non-combat . | . . . Combat . | . . . Robot Hacks Applied . | . . . Relay Couplers Released . | . . . Fabnet Peak Effective % . | . . . Robots Rewired . | . . . Allies Hacked . | . . . Hacks Repelled . | . . . Allies | -11 -10 -10 -------- Run | Yrd Mat Sub Total Allies . | . . . Largest Group . | . . . Highest-Rated Group . | . . . Highest-Rated Ally . | . . . Total Orders . | . . . Ally Attacks . | . . . Total Damage . | . . . Kills . | . . . Allies Corrupted . | . . . Allies Melted . | . . . Intel | -11 -10 -10 ------- Run | Yrd Mat Sub Robot Analysis Total . | . . . Derelict Logs Recovered 1 | . . 1 Drone Launches . | . . . Drone Recoveries . | . . . Exploration | -11 -10 -10 ------------- Run | Yrd Mat Sub Turns Passed 3822 | 242 2685 895 Spaces Moved 1921 | 185 1239 497 Core 19 | 19 . . Treads . | . . . Legs 1730 | 166 1239 325 Wheels 172 | . . 172 Hover . | . . . Flight . | . . . Fastest Speed 50 | 50 120 95 Average Speed 172 | 112 187 157 Slowest Speed 190 | 120 190 190 Overloaded Moves . | . . . Propulsion Burnouts . | . . . Robots Hopped . | . . . Cave-ins Triggered 1 | . 1 . Exploration Rate (%) 46 | 8 100 31 Regions Visited 2 Branch Regions 1 Pre-discovered Areas . | . . . Known Exits Taken . | . . . Unknown Exits Taken 2 | 1 1 . Scrap Searched 2 | . . 2 Spaces Dug 30 | . 30 . Terrain Destroyed 129 | . 103 26 Melee . | . . . Projectile 33 | . 33 . AOE 96 | . 70 26 Terrain Rammed . | . . . Walls Destroyed . | . . . Machines Disabled . | . . . Actions | -11 -10 -10 --------- Run | Yrd Mat Sub Total 2191 | 204 1434 553 Wait 48 | . 42 6 Move 1919 | 184 1238 497 Hop . | . . . Pick Up 37 | 6 28 3 Fast Attach 7 | 6 . 1 Attach 10 | 1 5 4 Detach 1 | . . 1 Swap 27 | 1 20 6 Drop 18 | . 17 1 Fire 123 | 6 84 33 Melee . | . . . Ram . | . . . Kick 1 | . . 1 Crush . | . . . Escape Stasis . | . . . Rewire . | . . . Trap . | . . . Miscellaneous . | . . . Route ------- -11/Scrapyard -10/Materials (discovered 5 exits: [*Mat x3] / [*Min] / [*Sub]) -10/Subcaves (discovered 1 exit: Mat) History --------- Turn | Location | Event 2 | -11/Scrapyard | Met Revision 17 73 | -11/Scrapyard | Discovered new exit (range 8) 243 | -11/Scrapyard | Entered Materials 304 | -10/Materials | Build established: Mutant 1085 | -10/Materials | Discovered new exit (range 12) 1247 | -10/Materials | Crushed by falling debris 2192 | -10/Materials | Discovered new exit (range 15) 2466 | -10/Materials | Discovered new exit (range 8) 2571 | -10/Materials | Discovered new exit (range 16) 2781 | -10/Materials | Discovered new exit (range 9) 2928 | -10/Materials | Entered Subcaves 3010 | -10/Subcaves | Shifting Twisted Machinery released Flamer 3038 | -10/Subcaves | Shifting Twisted Machinery released Flamer 3098 | -10/Subcaves | Core integrity fell below 50% 3555 | -10/Subcaves | Identified exit to Materials 3602 | -10/Subcaves | Core integrity fell below 20% 3705 | -10/Subcaves | Disturbed a concealed Subdweller 3823 | -10/Subcaves | Destroyed by Y-45 Defender with Heavy Assault Rifle Last Messages --------------- [Achievement: Let's See Who's Tougher] 03710_ MS-RCS(R) affixes Scrap Shield Fragment to Scrap Shield. 03712_ MS-RCS(R) destroyed. 03713_ Acquired 33 matter. 03716_ Acquired 2 matter. 03718_ Searching scrap... 03718_ Found Battle Cannon. 03718_ Found Sub. Monowheel. 03718_ Found 29 Matter. 03719_ Acquired 29 matter. 03724_ The unstable cave ceiling collapses. 03734_ System corrupted: Energy discharge (-92). 03780_ System corrupted: Matter fused (-10). 03784_ Subatomizers dissect the Corrupted Sub. Power Source. 03800_ NGXJ KIMP8KEO|<%JPGZIA 03803_ Critical hit (Burn: +37). 03808_ S-10 Pest destroyed. 03811_ Acquired 11 matter. 03821_ Flight Unit fries itself beyond repair. 03822_ Lgt. Ion Engine fries itself beyond repair. Map ----- +----------------------------------------------------+ | ?????????????????????????????????????????????????? | | ???????????????